Cogmind - Beta 16 @@@ ROGUE MODE // 2025.11.24 @ 05:28:10 Player: Red Box Result: Destroyed by as-90145 with Assembled Rifle Performance ------------- Evolutions (0) 0 Regions Visited (2) 400 Robots Destroyed (25) 125 Value Destroyed (371) 371 Prototype IDs (0) 0 Alien Tech Used (0) 0 Bonus (0) 0 TOTAL SCORE: 896 Bonus ------- None Cogmind --------- Core Integrity 0/250 Matter 185/300 Energy 100/100 System Corruption 0% Temperature Cool (23) Movement Rolling (115) Ox1 Location -10/Mines Parts ------- > --- POWER (1) -------- (None) > --- PROPULSION (2) --- Light Treads Compact Wheel > --- UTILITY (2) ------ Large Storage Unit Targeting Computer > --- WEAPON (2) ------- Medium Laser Grenade Launcher > --- INVENTORY (15) --- Light Treads Aluminum Leg Compact Wheel Disposable Heat Sink Medium Storage Unit Large Matter Pod (120) EM Pulse Gun Medium Laser Assault Rifle Datajack Mining Laser Peak State ------------ > --- POWER ------------ Light Ion Engine > --- PROPULSION ------- Aluminum Leg Aluminum Leg > --- UTILITY ---------- Medium Storage Unit Improved Terrain Scanner > --- WEAPON ----------- EM Pulse Gun EM Pulse Gun > --- INVENTORY -------- Light Treads Light Treads Compact Wheel Disposable Heat Sink Large Matter Pod Assault Rifle Grenade Launcher Datajack Mining Laser [Rating: 10] Favorites ----------- Power Light Ion Engine Engine Light Ion Engine Propulsion Aluminum Leg Treads Light Treads Leg Aluminum Leg Wheel Compact Wheel Utility Improved Terrain Scanner Device Improved Terrain Scanner Storage Large Storage Unit Processor Targeting Computer Weapon Assault Rifle Energy Gun EM Pulse Gun Ballistic Gun Assault Rifle Launcher Grenade Launcher Special Weapon Mining Laser Special Melee Weapon Datajack Build | -11 -10 -10 ------- Run | Yrd Mat Min Slots Evolved . | . . . Power . | . . . Propulsion . | . . . Utility . | . . . Weapon . | . . . Parts Attached 21 | 8 8 5 Power 1 | 1 . . Engine 1 | 1 . . Core . | . . . Reactor . | . . . Propulsion 6 | 2 1 3 Treads 2 | . . 2 Leg 3 | 2 1 . Wheel 1 | . . 1 Hover . | . . . Flight . | . . . Utility 5 | 2 2 1 Device 1 | 1 . . Storage 3 | 1 2 . Processor 1 | . . 1 Hackware . | . . . Protection . | . . . Artifact . | . . . Weapon 9 | 3 5 1 Energy Gun 3 | 1 1 1 Energy Cannon . | . . . Ballistic Gun 3 | 2 1 . Ballistic Cannon . | . . . Launcher 1 | . 1 . Special Weapon 1 | . 1 . Impact Weapon . | . . . Slashing Weapon . | . . . Piercing Weapon . | . . . Special Melee Weapon 1 | . 1 . Unidentified Prototypes . | . . . Parts Lost 5 | . 1 4 Power 1 | . . 1 Propulsion 1 | . . 1 Utility 1 | . . 1 Weapon 2 | . 1 1 Highest Loss Streak 4 | . 1 4 To Critical Strikes . | . . . Average Backups 9 | 3 9 10 Power . | . . . Propulsion 3 | 2 3 2 Utility 2 | . 2 3 Weapon 3 | . 3 4 Tool/Special . | . . . Unused Backups 5 | . 2 3 Power . | . . . Propulsion 2 | . 2 . Utility 2 | . . 2 Weapon 1 | . . 1 Tool/Special . | . . . Average Slot Usage (%) 98 | . 99 84 Engine 13 | . 14 3 Leg 27 | . 28 6 Device 13 | . 14 3 Storage 14 | . 14 14 Energy Gun 11 | . 11 8 Ballistic Gun 11 | . 11 14 Special Weapon 3 | . 3 . Peak Build Rating 10 | 9 10 10 Average Rating 9 | 5 9 7 On Entrance 6 | . 9 10 Avg Prop Armor Cover (%) 14 | . . 14 Naked Turns . | . . . Heaviest Build 28 | 12 28 28 Greatest Support 20 | 20 20 20 Greatest Overweight (x) 2 | 2 1 1 Average Overweight (x) . | . . 1 Largest Inventory Capacity 15 | 8 15 15 Average Capacity 11 | 7 11 15 Most Carried 13 | 6 13 13 Average Carried 9 | 4 9 10 Final Capacity 15 | 8 15 15 Final Carried 13 | 6 13 11 Class Distribution -------------------- 100% | Mutant Dominant Class ---------------- Mutant | -10/Materials Mutant | -10/Mines Resources | -11 -10 -10 ----------- Run | Yrd Mat Min Matter Collected 881 | 303 438 140 Remotely . | . . . Salvage Created 640 | 87 460 93 Parts 40 | 5 32 3 Haulers Intercepted 2 | . 2 . Recyclers Shooed 1 | . 1 . Parts Field Recycled . | . . . Retrieved Matter . | . . . Parts Self-Destructed . | . . . Prevented . | . . . Parts Restored . | . . . Kills | -11 -10 -10 ------- Run | Yrd Mat Min Combat Hostiles Destroyed 16 | . 9 7 Guns 7 | . 5 2 AOE 9 | . 4 5 Classes Destroyed 10 | 2 6 2 Worker 3 | . 3 . Builder 1 | . 1 . Tunneler 1 | 1 . . Hauler 2 | . 2 . Recycler 2 | 1 . 1 Watcher 3 | . 3 . Swarmer 8 | . 5 3 Grunt 4 | . 4 . Demolisher 1 | . . 1 Assembled 3 | . . 3 Best Kill Streak 9 | 1 9 7 Combat Bots Only 6 | . 4 6 Max Kills in Single Turn 3 | 1 3 2 Gunslinging . | . . . Exploded 2 | . 2 2 Melee . | . . . Uniques/NPCs Destroyed . | . . . Combat | -11 -10 -10 -------- Run | Yrd Mat Min Hostile Shots Fired 45 | . 20 25 Missed 8 | . 5 3 Hits 37 | . 15 22 Projectile 37 | . 15 22 AOE 14 | . . 14 Critical Strikes 1 | . 1 . Part Disruptions 1 | . . 1 Damage Taken 941 | . 180 761 Core 258 | . 14 244 Absorbed by Shields . | . . . Regen/Repaired (Parts) 40 | . 40 . Core Remaining (%) 100 | 100 . . Volleys Fired 97 | 13 68 16 Largest 2 | 2 2 2 Hottest 100 | 40 100 80 Shots Fired 152 | 26 100 26 Gun 108 | 26 64 18 Cannon . | . . . Launcher 12 | . 4 8 Special 32 | . 32 . Kinetic 49 | 26 11 12 Thermal 38 | . 32 6 Explosive 12 | . 4 8 Electromagnetic 53 | . 53 . Robot Hit Streak 10 | 6 8 10 Robot Miss Streak 5 | 2 5 1 Penetration Max . | . . . Secondary Targets . | . . . Shots Hit Robots 65 | 16 31 18 Core Hits 48 | 5 28 15 Critical Kills . | . . . Critical Parts Destroyed 1 | 1 . . Critical Strikes 3 | 1 . 2 Burn 2 | . . 2 Destroy 1 | 1 . . Melee Attacks . | . . . Impact . | . . . Slashing . | . . . Piercing . | . . . Sneak Attacks . | . . . Combat Hostiles . | . . . Follow-up Attacks . | . . . Damage Inflicted 1871 | 169 851 851 Guns 816 | 169 457 190 Cannons . | . . . Explosions 1053 | . 392 661 Melee . | . . . Ramming 2 | . 2 . Kinetic 343 | 169 58 116 Thermal 178 | . 104 74 Explosive 949 | . 288 661 Electromagnetic 399 | . 399 . Impact . | . . . Slashing . | . . . Piercing . | . . . Highest Corruption . | . . . Average Corruption . | . . . Corruption Purged . | . . . Corruption Blocked . | . . . Overload Shots . | . . . Overflow Damage 57 | . 2 55 Projectiles . | . . . Explosions 57 | . 2 55 Melee . | . . . Knockbacks . | . . . Impact . | . . . Kinetic . | . . . Secondary . | . . . Self-Inflicted Damage 43 | . . 43 Shots 3 | . . 3 Rammed . | . . . Targets Rammed 1 | . 1 . Kicked 1 | . 1 . Crushed . | . . . Highest Temperature 180 | . 180 23 Average Temperature 36 | . 37 18 Received Heat Transfer 128 | . 108 20 Siege Activations . | . . . Martial Activations . | . . . Shielding Activations . | . . . Robots Disrupted . | . . . Combat Hostiles . | . . . Robots Corrupted . | . . . Combat Hostiles . | . . . Parts Fried . | . . . Impact Corruptions . | . . . Robots Melted . | . . . Combat Hostiles . | . . . Parts Melted 1 | . 1 . Heat Transferred 520 | . 150 370 Parts Sabotaged . | . . . Parts Stolen . | . . . Parts Stripped . | . . . Power Chain Reactions 2 | . 2 . Alert | -11 -10 -10 ------- Run | Yrd Mat Min Maximum Alert Level . | . . . Low Security (%) 100 | 100 100 100 Level 1 . | . . . Level 2 . | . . . Level 3 . | . . . Level 4 . | . . . Level 5 . | . . . High Security . | . . . Max Security . | . . . Peak Influence 151 | 5 151 96 Initial 12 | . . 12 Average 43 | 1 44 57 Influence Increases 571 | 10 426 135 Destroy 0b10 Robot/C 260 | . 180 80 Destroy 0b10 Robot/NC 60 | 10 45 5 Destroy Leader 70 | . 50 20 Trap Triggered on 0b10 20 | . 20 . Successful Hack 33 | . 33 . Select Force Hacks 30 | . 30 . Disable Machine 15 | . 15 . Destroy Structure 83 | . 53 30 Influence Decreases 496 | 10 394 92 Entered New Map 20 | . . 20 Time Decay 454 | 10 384 60 Lost Part 12 | . 10 2 Lost Ally 10 | . . 10 Squads Dispatched 3 | . 3 . Investigation 2 | . 2 . Extermination . | . . . Reinforcement 1 | . 1 . Assault . | . . . Garrison . | . . . Intercept . | . . . Searches Triggered . | . . . Construction Impeded . | . . . Haulers Reinforced . | . . . Active Scanning Responses . | . . . Cargo Convoy Interrupts . | . . . Stealth | -11 -10 -10 --------- Run | Yrd Mat Min Distress Signals 2 | . 1 1 Communications Jammed . | . . . Distress Signals . | . . . Times Spotted 36 | . 19 17 Peak Tracking Total 10 | . 3 10 Tactical Retreats . | . . . Traps | -11 -10 -10 ------- Run | Yrd Mat Min Traps Triggered . | . . . Indirectly . | . . . Trap Hack Attempts 96 | . 96 . Triggered . | . . . Disarmed 1 | . 1 . Reprogrammed 11 | . 11 . Reused 2 | . 2 . Traps Extracted . | . . . Installed . | . . . Triggered 2 | . 2 . Machines | -11 -10 -10 ---------- Run | Yrd Mat Min Machines Disabled 1 | . 1 . Max in Single Turn 1 | . 1 . Machines Repaired . | . . . Machines Dismantled . | . . . Machines Sabotaged . | . . . Overloaded Fab Kills . | . . . Hacking | -11 -10 -10 --------- Run | Yrd Mat Min Machines Accessed 10 | . 10 . Terminals 7 | . 7 . Fabricators . | . . . Repair Stations 1 | . 1 . Recycling Units 2 | . 2 . Scanalyzers . | . . . Garrison Access . | . . . Total Hacks 34 | . 34 . Successful 21 | . 21 . Failed 13 | . 13 . Catastrophic 1 | . 1 . Database Lockouts . | . . . Manual 23 | . 23 . Terminals 24 | . 24 . Fabricators . | . . . Repair Stations 4 | . 4 . Recycling Units 6 | . 6 . Scanalyzers . | . . . Garrison Access . | . . . Terminal Hacks 4 | . 4 . Robot Analysis 3 | . 3 . Terminal Index 1 | . 1 . Fabricator Hacks . | . . . Repair Station Hacks 4 | . 4 . Scan Component 2 | . 2 . Repair 2 | . 2 . Recycling Unit Hacks 1 | . 1 . Retrieve Components 1 | . 1 . Scanalyzer . | . . . Garrison Access Hacks . | . . . Unauthorized Hacks 12 | . 12 . Terminals 11 | . 11 . Assimilate 4 | . 4 . Botnet 1 | . 1 . Operators 1 | . 1 . Skim 5 | . 5 . Fabricators . | . . . Repair Stations . | . . . Recycling Units 1 | . 1 . Tunnel 1 | . 1 . Scanalyzers . | . . . Garrison Access . | . . . Data Cores Recovered . | . . . Used . | . . . Hacking Detections 10 | . 10 . Full Trace Events 3 | . 3 . Feedback Events . | . . . Feedback Blocked . | . . . Robot Schematics Acquired . | . . . Robots Built . | . . . Authchips . | . . . Time . | . . . Total Robot Build Rating . | . . . Part Schematics Acquired . | . . . Parts Built . | . . . Authchips . | . . . Time . | . . . Total Part Build Rating . | . . . Part Studies Acquired . | . . . Parts Repaired 2 | . 2 . Time 58 | . 58 . Parts Recycled . | . . . Recycled Matter . | . . . Retrieved Matter . | . . . Retrieved Components 1 | . 1 . Parts Scanalyzed . | . . . Part Schematics Acquired . | . . . Parts Damaged . | . . . Bothacking | -11 -10 -10 ------------ Run | Yrd Mat Min Used RIF Installer . | . . . Robots Hacked . | . . . Non-combat . | . . . Combat . | . . . Robot Hacks Applied . | . . . Relay Couplers Released . | . . . Fabnet Peak Effective % . | . . . Robots Rewired . | . . . Allies Hacked . | . . . Hacks Repelled . | . . . Allies | -11 -10 -10 -------- Run | Yrd Mat Min Total Allies 5 | . 2 3 Largest Group 3 | . 2 3 Highest-Rated Group 40 | . 20 40 Highest-Rated Ally 16 | . 10 16 Total Orders 19 | . 16 3 STAY 10 | . 8 2 FOLLOW 9 | . 8 1 Ally Attacks 8 | . . 8 Total Damage 79 | . . 79 Kills 4 | . . 4 Allies Corrupted . | . . . Allies Melted . | . . . Intel | -11 -10 -10 ------- Run | Yrd Mat Min Active Infowar (turns) 3105 | 16 3067 22 Terrain 3105 | 16 3067 22 Robot Analysis Total 3 | . 3 . Derelict Logs Recovered . | . . . Drone Launches . | . . . Drone Recoveries . | . . . Exploration | -11 -10 -10 ------------- Run | Yrd Mat Min Turns Passed 3316 | 113 3067 136 Spaces Moved 1763 | 51 1647 65 Core 4 | 4 . . Treads . | . . . Legs 1703 | 47 1647 9 Wheels 56 | . . 56 Hover . | . . . Flight . | . . . Fastest Speed 50 | 50 120 115 Average Speed 141 | 116 143 125 Slowest Speed 190 | 150 190 190 Overloaded Moves . | . . . Propulsion Burnouts . | . . . Robots Hopped . | . . . Potential Cave-ins . | . . . Cave-ins Triggered . | . . . Exploration Rate (%) 42 | 4 99 23 Regions Visited 2 Branch Regions 1 Pre-discovered Areas 1 | . 1 . Known Exits Taken . | . . . Unknown Exits Taken 2 | 1 1 . Scrap Searched . | . . . Spaces Dug 40 | . 32 8 Terrain Destroyed 98 | . 57 41 Melee . | . . . Projectile 32 | . 32 . AOE 66 | . 25 41 Terrain Rammed . | . . . Walls Destroyed . | . . . Machines Disabled . | . . . Actions | -11 -10 -10 --------- Run | Yrd Mat Min Total 2351 | 77 2183 91 Wait 323 | . 322 1 Move 1761 | 50 1646 65 Hop . | . . . Pick Up 20 | 6 13 1 Fast Attach 7 | 7 . . Attach 5 | . 2 3 Detach . | . . . Swap 35 | 1 29 5 Drop 6 | . 6 . Fire 97 | 13 68 16 Melee . | . . . Ram . | . . . Kick 1 | . 1 . Crush . | . . . Escape Stasis . | . . . Rewire . | . . . Trap 96 | . 96 . Miscellaneous . | . . . Route ------- -11/Scrapyard -10/Materials (discovered 5 exits: *Mat x3 / [*Min] / [*Sub]) -10/Mines (discovered 2 exits: *Mat / Exi) History --------- Turn | Location | Event 2 | -11/Scrapyard | Met Revision 17 12 | -11/Scrapyard | Discovered new exit (range 14) 114 | -11/Scrapyard | Entered Materials 309 | -10/Materials | Build established: Mutant 408 | -10/Materials | Discovered new exit (range 13) 544 | -10/Materials | Discovered new exit (range 7) 863 | -10/Materials | Discovered new exit (range 10) 1495 | -10/Materials | Discovered new exit (range 10) 1888 | -10/Materials | Discovered new exit (range 7) 1996 | -10/Materials | Learned Storage terminal intel 2053 | -10/Materials | Identified exit to Materials 2102 | -10/Materials | Learned location of 2 exits from Mines 2142 | -10/Materials | Learned Storage trap positions 2212 | -10/Materials | Repaired EM Pulse Gun 2218 | -10/Materials | Learned 4 Subcaves zone layouts 2245 | -10/Materials | Repaired Disposable Heat Sink 2270 | -10/Materials | Loaded intel: 10 trap records 3181 | -10/Materials | Entered Mines 3181 | -10/Mines | Accompanied by 2 allies 3182 | -10/Mines | Assembled infested the area 3182 | -10/Mines | Identified exit to Exiles 3183 | -10/Mines | Met a Derelict bent on vengeance 3207 | -10/Mines | Core integrity fell below 50% 3213 | -10/Mines | Core integrity fell below 20% 3239 | -10/Mines | Lost 4 parts (1p1n1u1w) 3258 | -10/Mines | Lost 3 allies 3263 | -10/Mines | Assisted by bots powering up and referring to "LRC-V3" 3317 | -10/Mines | Destroyed by as-90145 with Assembled Rifle Last Messages --------------- 03288_ U-05 Engineer lays Concrete. 03292_ K-01 Serf collects debris. 03293_ U-05 Engineer lays Concrete. 03296_ Acquired 2 matter. 03296_ K-01 Serf collects debris. 03296_ U-05 Engineer lays Concrete. 03301_ K-01 Serf collects debris. 03301_ Acquired 80 matter. 03302_ U-05 Engineer lays Concrete. 03304_ Acquired Com. Wheel. 03304_ U-05 Engineer lays Concrete. 03305_ U-05 Engineer builds a Wall. 03306_ U-05 Engineer lays Concrete. 03306_ K-01 Serf collects debris. 03307_ U-05 Engineer lays Concrete. 03310_ K-01 Serf collects debris. 03311_ Mercenary 1a destroyed. 03311_ as-60699 destroyed. 03314_ K-01 Serf collects debris. 03315_ as-78135 destroyed. Map ----- +----------------------------------------------------+ | | | | | | | | | | | | | | | | | ??????????????????#######???????#????????????????? | | ?????????????????## ####??????????????????????? | | ????????????????## #! ##??????????????????????? | | ????????????????# ##=%! ##?????????????????????? | | ?????????????#?###### #?????????????????????? | | ??????????????## #???"?????????????????? | | ??????? ### # #??""" "??????????????? | | ?????????####### # # # ###? """ ""?????????????? | | ???????????????# ## # # ??????????????? | | ??????????###??# # # # """ ???????????????? | | ?????????## #?# # """ ???????????????? | | ?????????# ## # # """ "??????????????? | | ?????????# ## ??????????? | | ??????????# ## #%# # ??????????? | | ??? ?????# =# ???????????? | | ??# ??## #############???????????? | | ???# ## k# #####???????????????????? | | ?????# k ! !g@ #???????????????????? | | ??????# ## < #**g= #??????????????????? | | ????????????## # #### % #?????????????????? | | ??????????##### ###??## #?????????????????? | | ??????????# #?????? !a #?????????????????? | | ??????????# #?????? aaa ????????????????? | | ??????????# ##????? a a% ???????????????? | | ??????????#### ##???? ## ??????????????? | | ???????????## ###########?? ????????????? | | ??????????## ##??????###???????????? | | ??????????# #????????????????????? | | ?????????# #### #????????????????????? | | ?????????# ##??### #????????????????????? | | ?????????## ##??????# #????????????????????? | | ??????????######????????# ##????????????????????? | | ?????????????????????????###?????????????????????? | | ?????????????????????????????????????????????????? | | ?????????????????????????????????????????????????? | | ?????????????????????????????????????????????????? | | ?????????????????????????????????????????????????? | | ?????????????????????????????????????????????????? | | ?????????????????????????????????????????????????? | | ?????????????????????????????????????????????????? | | ?????????????????????????????????????????????????? | | ?????????????????????????????????????????????????? | +----------------------------------------------------+ Best States ------------- Heat Dissipation 25 Energy Generation 10 Energy Capacity 125 Matter Stores 300 Matter Capacity 300 Sight Range 16 Terrain Scan Range 16 Terrain Scan Density 10 Evasion (%) 55 Targeting Accuracy 5 Recoil Reduction 2 Item Schematics ----------------- None Robot Schematics ------------------ None Fabricated ------------ Nothing Repaired ---------- EM Pulse Gun | 68% | -10/Materials Disposable Heat Sink | 48% | -10/Materials Studied --------- None Alien Tech Used ----------------- None Achievements -------------- None Challenges ------------ None Game ------ Seed AccelerationSystemInjector Manual? 0 Play Time 00:23:23 Cumulative 719.5 hours Start 2025.11.24 @ 05:03:04 End 2025.11.24 @ 05:28:10 Sessions 1 Manual Loads 0 Difficulty Rogue Special Mode None Game No. 504 Rogue 504 Adventurer 0 Explorer 0 Win Type - Total 1 Types 1/0/0/0/0/0/0/0/0/0 Lore% 68 Gallery% 67 Achievement% 46 Wizard Run 0 Options --------- Layout 1 ASCII 0 Keyboard 0 Movement Mouse Keybinds 0 Fullscreen 1 Font 20/SmallcapsGlow Map View 54x42 Zoom Use 0% Tactical HUD 1 Map Filters NONE Filters NONE Steam 1 RUN: 99da38c7-b07c-49c9-970c-8015240aaa22